Workbook

Sheet BEP
B2: Wo ist der Break-Even-Point?
B6: Eingabewerte
B7: variable Stückkosten | C7: 20
B8: Stückpreis | C8: 40
B9: fixe Kosten | C9: 50000
B10: Kapazitätsgrenze | C10: 6000
B11: Break-Even-Point
B12: Deckungsbeitrag | C12: =C8-C7 -> 20
B13: Break-Even-Point | C13: =ROUNDUP(C9/C12,0) -> 2500
B14: =IF(C13>C10,"Break-Even-Point nicht erreichbar!","") -> 
B16: Auftragsberechnung
B17: Berechnen Sie den Unternehmenserfolg bei verschiedenen Produktionsmengen.
B21: Produktionsmenge | C21: 5500
B22: Erlös | C22: =C21*C8 -> 220000
B23: Kosten | C23: =(C21*C7)+C9 -> 160000
B24: Gewinn/Verlust | C24: =C22-C23 -> 60000
B25: =IF(C24<0,"Verlust!","Gewinn!") -> Gewinn!
B40: Break-Even-Menge | D40: Kosten = Erlös
B41: =C13 -> 2500 | C41: 0 | D41: 0 | E41: =C42 -> 100000
B42: =C13 -> 2500 | C42: =C13*C7+C9 -> 100000 | D42: =C13 -> 2500 | E42: =C42 -> 100000
B44: Kapazitäsgrenze | D44: Gewinn
B45: =C10 -> 6000 | C45: 0 | D45: =C21 -> 5500 | E45: =C23 -> 160000
B46: =C10 -> 6000 | C46: =C8*C10 -> 240000 | D46: =C21 -> 5500 | E46: =C22 -> 220000

Sheet Daten
B2: Datenreihen
B3: Menge | C3: fixe Kosten | D3: variable Kosten | E3: Gesamtkosten | F3: Erlös | G3: Gewinn
A4: 1 | B4: 0 | C4: =BEP!$C$9 -> 50000 | D4: =IF(B4<1,0,B4*BEP!$C$7) -> 0 | E4: =IF(B4<1,C4,C4+D4) -> 50000 | F4: =B4*BEP!$C$8 -> 0 | G4: =F4-E4 -> -50000
A5: 2 | B5: =BEP!$C$10/99 -> 60.60606061 | C5: =BEP!$C$9 -> 50000 | D5: =IF(B5<1,"",B5*BEP!$C$7) -> 1212.121212 | E5: =IF(B5<1,C5,C5+D5) -> 51212.12121 | F5: =B5*BEP!$C$8 -> 2424.242424 | G5: =F5-E5 -> -48787.87879
A6: 3 | B6: =B5+$B$5 -> 121.2121212 | C6: =BEP!$C$9 -> 50000 | D6: =IF(B6<1,"",B6*BEP!$C$7) -> 2424.242424 | E6: 52424.24242 | F6: =B6*BEP!$C$8 -> 4848.484848 | G6: -47575.75758
A7: 4 | B7: =B6+$B$5 -> 181.8181818 | C7: =BEP!$C$9 -> 50000 | D7: =IF(B7<1,"",B7*BEP!$C$7) -> 3636.363636 | E7: 53636.36364 | F7: =B7*BEP!$C$8 -> 7272.727273 | G7: -46363.63636
A8: 5 | B8: 242.4242424 | C8: =BEP!$C$9 -> 50000 | D8: =IF(B8<1,"",B8*BEP!$C$7) -> 4848.484848 | E8: 54848.48485 | F8: =B8*BEP!$C$8 -> 9696.969697 | G8: -45151.51515
A9: 6 | B9: 303.030303 | C9: =BEP!$C$9 -> 50000 | D9: =IF(B9<1,"",B9*BEP!$C$7) -> 6060.606061 | E9: 56060.60606 | F9: =B9*BEP!$C$8 -> 12121.21212 | G9: -43939.39394
A10: 7 | B10: 363.6363636 | C10: =BEP!$C$9 -> 50000 | D10: =IF(B10<1,"",B10*BEP!$C$7) -> 7272.727273 | E10: 57272.72727 | F10: =B10*BEP!$C$8 -> 14545.45455 | G10: -42727.27273
A11: 8 | B11: 424.2424242 | C11: =BEP!$C$9 -> 50000 | D11: =IF(B11<1,"",B11*BEP!$C$7) -> 8484.848485 | E11: 58484.84848 | F11: =B11*BEP!$C$8 -> 16969.69697 | G11: -41515.15152
A12: 9 | B12: 484.8484848 | C12: =BEP!$C$9 -> 50000 | D12: =IF(B12<1,"",B12*BEP!$C$7) -> 9696.969697 | E12: 59696.9697 | F12: =B12*BEP!$C$8 -> 19393.93939 | G12: -40303.0303
A13: 10 | B13: 545.4545455 | C13: =BEP!$C$9 -> 50000 | D13: =IF(B13<1,"",B13*BEP!$C$7) -> 10909.09091 | E13: 60909.09091 | F13: =B13*BEP!$C$8 -> 21818.18182 | G13: -39090.90909
A14: 11 | B14: 606.0606061 | C14: =BEP!$C$9 -> 50000 | D14: =IF(B14<1,"",B14*BEP!$C$7) -> 12121.21212 | E14: 62121.21212 | F14: =B14*BEP!$C$8 -> 24242.42424 | G14: -37878.78788
A15: 12 | B15: 666.6666667 | C15: =BEP!$C$9 -> 50000 | D15: =IF(B15<1,"",B15*BEP!$C$7) -> 13333.33333 | E15: 63333.33333 | F15: =B15*BEP!$C$8 -> 26666.66667 | G15: -36666.66667
A16: 13 | B16: 727.2727273 | C16: =BEP!$C$9 -> 50000 | D16: =IF(B16<1,"",B16*BEP!$C$7) -> 14545.45455 | E16: 64545.45455 | F16: =B16*BEP!$C$8 -> 29090.90909 | G16: -35454.54545
A17: 14 | B17: 787.8787879 | C17: =BEP!$C$9 -> 50000 | D17: =IF(B17<1,"",B17*BEP!$C$7) -> 15757.57576 | E17: 65757.57576 | F17: =B17*BEP!$C$8 -> 31515.15152 | G17: -34242.42424
A18: 15 | B18: 848.4848485 | C18: =BEP!$C$9 -> 50000 | D18: =IF(B18<1,"",B18*BEP!$C$7) -> 16969.69697 | E18: 66969.69697 | F18: =B18*BEP!$C$8 -> 33939.39394 | G18: -33030.30303
A19: 16 | B19: 909.0909091 | C19: =BEP!$C$9 -> 50000 | D19: =IF(B19<1,"",B19*BEP!$C$7) -> 18181.81818 | E19: 68181.81818 | F19: =B19*BEP!$C$8 -> 36363.63636 | G19: -31818.18182
A20: 17 | B20: 969.6969697 | C20: =BEP!$C$9 -> 50000 | D20: =IF(B20<1,"",B20*BEP!$C$7) -> 19393.93939 | E20: 69393.93939 | F20: =B20*BEP!$C$8 -> 38787.87879 | G20: -30606.06061
A21: 18 | B21: 1030.30303 | C21: =BEP!$C$9 -> 50000 | D21: =IF(B21<1,"",B21*BEP!$C$7) -> 20606.06061 | E21: 70606.06061 | F21: =B21*BEP!$C$8 -> 41212.12121 | G21: -29393.93939
A22: 19 | B22: 1090.909091 | C22: =BEP!$C$9 -> 50000 | D22: =IF(B22<1,"",B22*BEP!$C$7) -> 21818.18182 | E22: 71818.18182 | F22: =B22*BEP!$C$8 -> 43636.36364 | G22: -28181.81818
A23: 20 | B23: 1151.515152 | C23: =BEP!$C$9 -> 50000 | D23: =IF(B23<1,"",B23*BEP!$C$7) -> 23030.30303 | E23: 73030.30303 | F23: =B23*BEP!$C$8 -> 46060.60606 | G23: -26969.69697
A24: 21 | B24: 1212.121212 | C24: =BEP!$C$9 -> 50000 | D24: =IF(B24<1,"",B24*BEP!$C$7) -> 24242.42424 | E24: 74242.42424 | F24: =B24*BEP!$C$8 -> 48484.84848 | G24: -25757.57576
A25: 22 | B25: 1272.727273 | C25: =BEP!$C$9 -> 50000 | D25: =IF(B25<1,"",B25*BEP!$C$7) -> 25454.54545 | E25: 75454.54545 | F25: =B25*BEP!$C$8 -> 50909.09091 | G25: -24545.45455
A26: 23 | B26: 1333.333333 | C26: =BEP!$C$9 -> 50000 | D26: =IF(B26<1,"",B26*BEP!$C$7) -> 26666.66667 | E26: 76666.66667 | F26: =B26*BEP!$C$8 -> 53333.33333 | G26: -23333.33333
A27: 24 | B27: 1393.939394 | C27: =BEP!$C$9 -> 50000 | D27: =IF(B27<1,"",B27*BEP!$C$7) -> 27878.78788 | E27: 77878.78788 | F27: =B27*BEP!$C$8 -> 55757.57576 | G27: -22121.21212
A28: 25 | B28: 1454.545455 | C28: =BEP!$C$9 -> 50000 | D28: =IF(B28<1,"",B28*BEP!$C$7) -> 29090.90909 | E28: 79090.90909 | F28: =B28*BEP!$C$8 -> 58181.81818 | G28: -20909.09091
A29: 26 | B29: 1515.151515 | C29: =BEP!$C$9 -> 50000 | D29: =IF(B29<1,"",B29*BEP!$C$7) -> 30303.0303 | E29: 80303.0303 | F29: =B29*BEP!$C$8 -> 60606.06061 | G29: -19696.9697
A30: 27 | B30: 1575.757576 | C30: =BEP!$C$9 -> 50000 | D30: =IF(B30<1,"",B30*BEP!$C$7) -> 31515.15152 | E30: 81515.15152 | F30: =B30*BEP!$C$8 -> 63030.30303 | G30: -18484.84848
A31: 28 | B31: 1636.363636 | C31: =BEP!$C$9 -> 50000 | D31: =IF(B31<1,"",B31*BEP!$C$7) -> 32727.27273 | E31: 82727.27273 | F31: =B31*BEP!$C$8 -> 65454.54545 | G31: -17272.72727
A32: 29 | B32: 1696.969697 | C32: =BEP!$C$9 -> 50000 | D32: =IF(B32<1,"",B32*BEP!$C$7) -> 33939.39394 | E32: 83939.39394 | F32: =B32*BEP!$C$8 -> 67878.78788 | G32: -16060.60606
A33: 30 | B33: 1757.575758 | C33: =BEP!$C$9 -> 50000 | D33: =IF(B33<1,"",B33*BEP!$C$7) -> 35151.51515 | E33: 85151.51515 | F33: =B33*BEP!$C$8 -> 70303.0303 | G33: -14848.48485
A34: 31 | B34: 1818.181818 | C34: =BEP!$C$9 -> 50000 | D34: =IF(B34<1,"",B34*BEP!$C$7) -> 36363.63636 | E34: 86363.63636 | F34: =B34*BEP!$C$8 -> 72727.27273 | G34: -13636.36364
A35: 32 | B35: 1878.787879 | C35: =BEP!$C$9 -> 50000 | D35: =IF(B35<1,"",B35*BEP!$C$7) -> 37575.75758 | E35: 87575.75758 | F35: =B35*BEP!$C$8 -> 75151.51515 | G35: -12424.24242
A36: 33 | B36: 1939.393939 | C36: =BEP!$C$9 -> 50000 | D36: =IF(B36<1,"",B36*BEP!$C$7) -> 38787.87879 | E36: 88787.87879 | F36: =B36*BEP!$C$8 -> 77575.75758 | G36: -11212.12121
A37: 34 | B37: 2000 | C37: =BEP!$C$9 -> 50000 | D37: =IF(B37<1,"",B37*BEP!$C$7) -> 40000 | E37: 90000 | F37: =B37*BEP!$C$8 -> 80000 | G37: -10000
A38: 35 | B38: 2060.606061 | C38: =BEP!$C$9 -> 50000 | D38: =IF(B38<1,"",B38*BEP!$C$7) -> 41212.12121 | E38: 91212.12121 | F38: =B38*BEP!$C$8 -> 82424.24242 | G38: -8787.878788
A39: 36 | B39: 2121.212121 | C39: =BEP!$C$9 -> 50000 | D39: =IF(B39<1,"",B39*BEP!$C$7) -> 42424.24242 | E39: 92424.24242 | F39: =B39*BEP!$C$8 -> 84848.48485 | G39: -7575.757576
A40: 37 | B40: 2181.818182 | C40: =BEP!$C$9 -> 50000 | D40: =IF(B40<1,"",B40*BEP!$C$7) -> 43636.36364 | E40: 93636.36364 | F40: =B40*BEP!$C$8 -> 87272.72727 | G40: -6363.636364
A41: 38 | B41: 2242.424242 | C41: =BEP!$C$9 -> 50000 | D41: =IF(B41<1,"",B41*BEP!$C$7) -> 44848.48485 | E41: 94848.48485 | F41: =B41*BEP!$C$8 -> 89696.9697 | G41: -5151.515152
A42: 39 | B42: 2303.030303 | C42: =BEP!$C$9 -> 50000 | D42: =IF(B42<1,"",B42*BEP!$C$7) -> 46060.60606 | E42: 96060.60606 | F42: =B42*BEP!$C$8 -> 92121.21212 | G42: -3939.393939
A43: 40 | B43: 2363.636364 | C43: =BEP!$C$9 -> 50000 | D43: =IF(B43<1,"",B43*BEP!$C$7) -> 47272.72727 | E43: 97272.72727 | F43: =B43*BEP!$C$8 -> 94545.45455 | G43: -2727.272727
A44: 41 | B44: 2424.242424 | C44: =BEP!$C$9 -> 50000 | D44: =IF(B44<1,"",B44*BEP!$C$7) -> 48484.84848 | E44: 98484.84848 | F44: =B44*BEP!$C$8 -> 96969.69697 | G44: -1515.151515
A45: 42 | B45: 2484.848485 | C45: =BEP!$C$9 -> 50000 | D45: =IF(B45<1,"",B45*BEP!$C$7) -> 49696.9697 | E45: 99696.9697 | F45: =B45*BEP!$C$8 -> 99393.93939 | G45: -303.030303
A46: 43 | B46: 2545.454545 | C46: =BEP!$C$9 -> 50000 | D46: =IF(B46<1,"",B46*BEP!$C$7) -> 50909.09091 | E46: 100909.0909 | F46: =B46*BEP!$C$8 -> 101818.1818 | G46: 909.0909091
A47: 44 | B47: 2606.060606 | C47: =BEP!$C$9 -> 50000 | D47: =IF(B47<1,"",B47*BEP!$C$7) -> 52121.21212 | E47: 102121.2121 | F47: =B47*BEP!$C$8 -> 104242.4242 | G47: 2121.212121
A48: 45 | B48: 2666.666667 | C48: =BEP!$C$9 -> 50000 | D48: =IF(B48<1,"",B48*BEP!$C$7) -> 53333.33333 | E48: 103333.3333 | F48: =B48*BEP!$C$8 -> 106666.6667 | G48: 3333.333333
A49: 46 | B49: 2727.272727 | C49: =BEP!$C$9 -> 50000 | D49: =IF(B49<1,"",B49*BEP!$C$7) -> 54545.45455 | E49: 104545.4545 | F49: =B49*BEP!$C$8 -> 109090.9091 | G49: 4545.454545
A50: 47 | B50: 2787.878788 | C50: =BEP!$C$9 -> 50000 | D50: =IF(B50<1,"",B50*BEP!$C$7) -> 55757.57576 | E50: 105757.5758 | F50: =B50*BEP!$C$8 -> 111515.1515 | G50: 5757.575758
A51: 48 | B51: 2848.484848 | C51: =BEP!$C$9 -> 50000 | D51: =IF(B51<1,"",B51*BEP!$C$7) -> 56969.69697 | E51: 106969.697 | F51: =B51*BEP!$C$8 -> 113939.3939 | G51: 6969.69697
A52: 49 | B52: 2909.090909 | C52: =BEP!$C$9 -> 50000 | D52: =IF(B52<1,"",B52*BEP!$C$7) -> 58181.81818 | E52: 108181.8182 | F52: =B52*BEP!$C$8 -> 116363.6364 | G52: 8181.818182
A53: 50 | B53: 2969.69697 | C53: =BEP!$C$9 -> 50000 | D53: =IF(B53<1,"",B53*BEP!$C$7) -> 59393.93939 | E53: 109393.9394 | F53: =B53*BEP!$C$8 -> 118787.8788 | G53: 9393.939394
A54: 51 | B54: 3030.30303 | C54: =BEP!$C$9 -> 50000 | D54: =IF(B54<1,"",B54*BEP!$C$7) -> 60606.06061 | E54: 110606.0606 | F54: =B54*BEP!$C$8 -> 121212.1212 | G54: 10606.06061
A55: 52 | B55: 3090.909091 | C55: =BEP!$C$9 -> 50000 | D55: =IF(B55<1,"",B55*BEP!$C$7) -> 61818.18182 | E55: 111818.1818 | F55: =B55*BEP!$C$8 -> 123636.3636 | G55: 11818.18182
A56: 53 | B56: 3151.515152 | C56: =BEP!$C$9 -> 50000 | D56: =IF(B56<1,"",B56*BEP!$C$7) -> 63030.30303 | E56: 113030.303 | F56: =B56*BEP!$C$8 -> 126060.6061 | G56: 13030.30303
A57: 54 | B57: 3212.121212 | C57: =BEP!$C$9 -> 50000 | D57: =IF(B57<1,"",B57*BEP!$C$7) -> 64242.42424 | E57: 114242.4242 | F57: =B57*BEP!$C$8 -> 128484.8485 | G57: 14242.42424
A58: 55 | B58: 3272.727273 | C58: =BEP!$C$9 -> 50000 | D58: =IF(B58<1,"",B58*BEP!$C$7) -> 65454.54545 | E58: 115454.5455 | F58: =B58*BEP!$C$8 -> 130909.0909 | G58: 15454.54545
A59: 56 | B59: 3333.333333 | C59: =BEP!$C$9 -> 50000 | D59: =IF(B59<1,"",B59*BEP!$C$7) -> 66666.66667 | E59: 116666.6667 | F59: =B59*BEP!$C$8 -> 133333.3333 | G59: 16666.66667
A60: 57 | B60: 3393.939394 | C60: =BEP!$C$9 -> 50000 | D60: =IF(B60<1,"",B60*BEP!$C$7) -> 67878.78788 | E60: 117878.7879 | F60: =B60*BEP!$C$8 -> 135757.5758 | G60: 17878.78788
A61: 58 | B61: 3454.545455 | C61: =BEP!$C$9 -> 50000 | D61: =IF(B61<1,"",B61*BEP!$C$7) -> 69090.90909 | E61: 119090.9091 | F61: =B61*BEP!$C$8 -> 138181.8182 | G61: 19090.90909
A62: 59 | B62: 3515.151515 | C62: =BEP!$C$9 -> 50000 | D62: =IF(B62<1,"",B62*BEP!$C$7) -> 70303.0303 | E62: 120303.0303 | F62: =B62*BEP!$C$8 -> 140606.0606 | G62: 20303.0303
A63: 60 | B63: 3575.757576 | C63: =BEP!$C$9 -> 50000 | D63: =IF(B63<1,"",B63*BEP!$C$7) -> 71515.15152 | E63: 121515.1515 | F63: =B63*BEP!$C$8 -> 143030.303 | G63: 21515.15152
A64: 61 | B64: 3636.363636 | C64: =BEP!$C$9 -> 50000 | D64: =IF(B64<1,"",B64*BEP!$C$7) -> 72727.27273 | E64: 122727.2727 | F64: =B64*BEP!$C$8 -> 145454.5455 | G64: 22727.27273
A65: 62 | B65: 3696.969697 | C65: =BEP!$C$9 -> 50000 | D65: =IF(B65<1,"",B65*BEP!$C$7) -> 73939.39394 | E65: 123939.3939 | F65: =B65*BEP!$C$8 -> 147878.7879 | G65: 23939.39394
A66: 63 | B66: 3757.575758 | C66: =BEP!$C$9 -> 50000 | D66: =IF(B66<1,"",B66*BEP!$C$7) -> 75151.51515 | E66: 125151.5152 | F66: =B66*BEP!$C$8 -> 150303.0303 | G66: 25151.51515
A67: 64 | B67: 3818.181818 | C67: =BEP!$C$9 -> 50000 | D67: =IF(B67<1,"",B67*BEP!$C$7) -> 76363.63636 | E67: 126363.6364 | F67: =B67*BEP!$C$8 -> 152727.2727 | G67: 26363.63636
A68: 65 | B68: 3878.787879 | C68: =BEP!$C$9 -> 50000 | D68: =IF(B68<1,"",B68*BEP!$C$7) -> 77575.75758 | E68: 127575.7576 | F68: =B68*BEP!$C$8 -> 155151.5152 | G68: 27575.75758
A69: 66 | B69: 3939.393939 | C69: =BEP!$C$9 -> 50000 | D69: =IF(B69<1,"",B69*BEP!$C$7) -> 78787.87879 | E69: =IF(B69<1,C69,C69+D69) -> 128787.8788 | F69: =B69*BEP!$C$8 -> 157575.7576 | G69: =F69-E69 -> 28787.87879
A70: 67 | B70: 4000 | C70: =BEP!$C$9 -> 50000 | D70: =IF(B70<1,"",B70*BEP!$C$7) -> 80000 | E70: 130000 | F70: =B70*BEP!$C$8 -> 160000 | G70: 30000
A71: 68 | B71: =B70+$B$5 -> 4060.606061 | C71: =BEP!$C$9 -> 50000 | D71: =IF(B71<1,"",B71*BEP!$C$7) -> 81212.12121 | E71: 131212.1212 | F71: =B71*BEP!$C$8 -> 162424.2424 | G71: 31212.12121
A72: 69 | B72: 4121.212121 | C72: =BEP!$C$9 -> 50000 | D72: =IF(B72<1,"",B72*BEP!$C$7) -> 82424.24242 | E72: 132424.2424 | F72: =B72*BEP!$C$8 -> 164848.4848 | G72: 32424.24242
A73: 70 | B73: 4181.818182 | C73: =BEP!$C$9 -> 50000 | D73: =IF(B73<1,"",B73*BEP!$C$7) -> 83636.36364 | E73: 133636.3636 | F73: =B73*BEP!$C$8 -> 167272.7273 | G73: 33636.36364
A74: 71 | B74: 4242.424242 | C74: =BEP!$C$9 -> 50000 | D74: =IF(B74<1,"",B74*BEP!$C$7) -> 84848.48485 | E74: 134848.4848 | F74: =B74*BEP!$C$8 -> 169696.9697 | G74: 34848.48485
A75: 72 | B75: 4303.030303 | C75: =BEP!$C$9 -> 50000 | D75: =IF(B75<1,"",B75*BEP!$C$7) -> 86060.60606 | E75: 136060.6061 | F75: =B75*BEP!$C$8 -> 172121.2121 | G75: 36060.60606
A76: 73 | B76: 4363.636364 | C76: =BEP!$C$9 -> 50000 | D76: =IF(B76<1,"",B76*BEP!$C$7) -> 87272.72727 | E76: 137272.7273 | F76: =B76*BEP!$C$8 -> 174545.4545 | G76: 37272.72727
A77: 74 | B77: 4424.242424 | C77: =BEP!$C$9 -> 50000 | D77: =IF(B77<1,"",B77*BEP!$C$7) -> 88484.84848 | E77: 138484.8485 | F77: =B77*BEP!$C$8 -> 176969.697 | G77: 38484.84848
A78: 75 | B78: 4484.848485 | C78: =BEP!$C$9 -> 50000 | D78: =IF(B78<1,"",B78*BEP!$C$7) -> 89696.9697 | E78: 139696.9697 | F78: =B78*BEP!$C$8 -> 179393.9394 | G78: 39696.9697
A79: 76 | B79: 4545.454545 | C79: =BEP!$C$9 -> 50000 | D79: =IF(B79<1,"",B79*BEP!$C$7) -> 90909.09091 | E79: 140909.0909 | F79: =B79*BEP!$C$8 -> 181818.1818 | G79: 40909.09091
A80: 77 | B80: 4606.060606 | C80: =BEP!$C$9 -> 50000 | D80: =IF(B80<1,"",B80*BEP!$C$7) -> 92121.21212 | E80: 142121.2121 | F80: =B80*BEP!$C$8 -> 184242.4242 | G80: 42121.21212
A81: 78 | B81: 4666.666667 | C81: =BEP!$C$9 -> 50000 | D81: =IF(B81<1,"",B81*BEP!$C$7) -> 93333.33333 | E81: 143333.3333 | F81: =B81*BEP!$C$8 -> 186666.6667 | G81: 43333.33333
A82: 79 | B82: 4727.272727 | C82: =BEP!$C$9 -> 50000 | D82: =IF(B82<1,"",B82*BEP!$C$7) -> 94545.45455 | E82: 144545.4545 | F82: =B82*BEP!$C$8 -> 189090.9091 | G82: 44545.45455
A83: 80 | B83: 4787.878788 | C83: =BEP!$C$9 -> 50000 | D83: =IF(B83<1,"",B83*BEP!$C$7) -> 95757.57576 | E83: 145757.5758 | F83: =B83*BEP!$C$8 -> 191515.1515 | G83: 45757.57576
A84: 81 | B84: 4848.484848 | C84: =BEP!$C$9 -> 50000 | D84: =IF(B84<1,"",B84*BEP!$C$7) -> 96969.69697 | E84: 146969.697 | F84: =B84*BEP!$C$8 -> 193939.3939 | G84: 46969.69697
A85: 82 | B85: 4909.090909 | C85: =BEP!$C$9 -> 50000 | D85: =IF(B85<1,"",B85*BEP!$C$7) -> 98181.81818 | E85: 148181.8182 | F85: =B85*BEP!$C$8 -> 196363.6364 | G85: 48181.81818
A86: 83 | B86: 4969.69697 | C86: =BEP!$C$9 -> 50000 | D86: =IF(B86<1,"",B86*BEP!$C$7) -> 99393.93939 | E86: 149393.9394 | F86: =B86*BEP!$C$8 -> 198787.8788 | G86: 49393.93939
A87: 84 | B87: 5030.30303 | C87: =BEP!$C$9 -> 50000 | D87: =IF(B87<1,"",B87*BEP!$C$7) -> 100606.0606 | E87: 150606.0606 | F87: =B87*BEP!$C$8 -> 201212.1212 | G87: 50606.06061
A88: 85 | B88: 5090.909091 | C88: =BEP!$C$9 -> 50000 | D88: =IF(B88<1,"",B88*BEP!$C$7) -> 101818.1818 | E88: 151818.1818 | F88: =B88*BEP!$C$8 -> 203636.3636 | G88: 51818.18182
A89: 86 | B89: 5151.515152 | C89: =BEP!$C$9 -> 50000 | D89: =IF(B89<1,"",B89*BEP!$C$7) -> 103030.303 | E89: 153030.303 | F89: =B89*BEP!$C$8 -> 206060.6061 | G89: 53030.30303
A90: 87 | B90: 5212.121212 | C90: =BEP!$C$9 -> 50000 | D90: =IF(B90<1,"",B90*BEP!$C$7) -> 104242.4242 | E90: 154242.4242 | F90: =B90*BEP!$C$8 -> 208484.8485 | G90: 54242.42424
A91: 88 | B91: 5272.727273 | C91: =BEP!$C$9 -> 50000 | D91: =IF(B91<1,"",B91*BEP!$C$7) -> 105454.5455 | E91: 155454.5455 | F91: =B91*BEP!$C$8 -> 210909.0909 | G91: 55454.54545
A92: 89 | B92: 5333.333333 | C92: =BEP!$C$9 -> 50000 | D92: =IF(B92<1,"",B92*BEP!$C$7) -> 106666.6667 | E92: 156666.6667 | F92: =B92*BEP!$C$8 -> 213333.3333 | G92: 56666.66667
A93: 90 | B93: 5393.939394 | C93: =BEP!$C$9 -> 50000 | D93: =IF(B93<1,"",B93*BEP!$C$7) -> 107878.7879 | E93: 157878.7879 | F93: =B93*BEP!$C$8 -> 215757.5758 | G93: 57878.78788
A94: 91 | B94: 5454.545455 | C94: =BEP!$C$9 -> 50000 | D94: =IF(B94<1,"",B94*BEP!$C$7) -> 109090.9091 | E94: 159090.9091 | F94: =B94*BEP!$C$8 -> 218181.8182 | G94: 59090.90909
A95: 92 | B95: 5515.151515 | C95: =BEP!$C$9 -> 50000 | D95: =IF(B95<1,"",B95*BEP!$C$7) -> 110303.0303 | E95: 160303.0303 | F95: =B95*BEP!$C$8 -> 220606.0606 | G95: 60303.0303
A96: 93 | B96: 5575.757576 | C96: =BEP!$C$9 -> 50000 | D96: =IF(B96<1,"",B96*BEP!$C$7) -> 111515.1515 | E96: 161515.1515 | F96: =B96*BEP!$C$8 -> 223030.303 | G96: 61515.15152
A97: 94 | B97: 5636.363636 | C97: =BEP!$C$9 -> 50000 | D97: =IF(B97<1,"",B97*BEP!$C$7) -> 112727.2727 | E97: 162727.2727 | F97: =B97*BEP!$C$8 -> 225454.5455 | G97: 62727.27273
A98: 95 | B98: 5696.969697 | C98: =BEP!$C$9 -> 50000 | D98: =IF(B98<1,"",B98*BEP!$C$7) -> 113939.3939 | E98: 163939.3939 | F98: =B98*BEP!$C$8 -> 227878.7879 | G98: 63939.39394
A99: 96 | B99: 5757.575758 | C99: =BEP!$C$9 -> 50000 | D99: =IF(B99<1,"",B99*BEP!$C$7) -> 115151.5152 | E99: 165151.5152 | F99: =B99*BEP!$C$8 -> 230303.0303 | G99: 65151.51515
A100: 97 | B100: 5818.181818 | C100: =BEP!$C$9 -> 50000 | D100: =IF(B100<1,"",B100*BEP!$C$7) -> 116363.6364 | E100: 166363.6364 | F100: =B100*BEP!$C$8 -> 232727.2727 | G100: 66363.63636
A101: 98 | B101: 5878.787879 | C101: =BEP!$C$9 -> 50000 | D101: =IF(B101<1,"",B101*BEP!$C$7) -> 117575.7576 | E101: 167575.7576 | F101: =B101*BEP!$C$8 -> 235151.5152 | G101: 67575.75758
A102: 99 | B102: 5939.393939 | C102: =BEP!$C$9 -> 50000 | D102: =IF(B102<1,"",B102*BEP!$C$7) -> 118787.8788 | E102: 168787.8788 | F102: =B102*BEP!$C$8 -> 237575.7576 | G102: 68787.87879
A103: 100 | B103: =BEP!C10 -> 6000 | C103: =BEP!$C$9 -> 50000 | D103: =IF(B103<1,"",B103*BEP!$C$7) -> 120000 | E103: 170000 | F103: =B103*BEP!$C$8 -> 240000 | G103: 70000
